Workbook

Sheet 1-е ОУ
A1: Дата аккредитации | B1: Образовательная организация | C1: Взаимодействие с окружающими людьми | D1: Способность самостоятельно эффективно действовать | E1: Готовность к активному творчеству | F1: Волевая готовность к преодолению трудностей в своих делах и занятиях | G1: Способность к сочувствию по отношению к окружающим | H1: Эмоц-чувст неприятие прояв неуваж отн к ценностям культур | I1: Настрой на совмест. деятельность с др. людьми | J1: Уваж.отношение к правам и свободам других | K1: Конструктивное взаим.со взрослым общ. и сверстниками | L1: Добросовестная конкуренция в различ. видах деятельности | M1: Чувство прекрасного.Восприятие искусства | N1: Оценка последствий деятельности чел. для окруж. Среды | O1: Способность разумно огранич.свои потребности | P1: Интерес к новизне | Q1: Средства и способы получ. инфо для самосовершенст-вования | R1: Стремление поддерж. культуру тела и физ. Развитость | S1: Умения поддерживать свою работоспособность | T1: Принятие самостоятельных решении. Самоорганизация | U1: Развитие умений планировать свою деятельность
C2: 1.2 | D2: 3.1. | E2: 5.2. | F2: 14. | G2: 1.1 | H2: 2.1 | I2: 2.2 | J2: 3.2 | K2: 4.1 | L2: 4.2 | M2: 5.1 | N2: 6.1 | O2: 6.2 | P2: 7.1 | Q2: 7.2 | R2: 8.1 | S2: 8.2 | T2: 9.1 | U2: 9.2
A3: ГРУППА А
A4: 2024-10-11 | B4: МОБУ СОШ с.Засечное | C4: 0.36 | D4: 0.35 | E4: 0.43 | F4: 0.56 | G4: 0.11 | H4: 0.34 | I4: 0.11 | J4: 0.11 | K4: 0.45 | L4: 0.34 | M4: 0.26 | N4: 0.23 | O4: 0.34 | P4: 0.26 | Q4: 0.57 | R4: 0.34 | S4: 0.57 | T4: 0.42 | U4: 0.11
A5: 2024-10-11 | B5: МОБУ СОШ с.Засечное | C5: 0.79 | D5: 0.41 | E5: 0.63 | F5: 0.75 | G5: 1 | H5: 0.76 | I5: 1 | J5: 0.5 | K5: 0.38 | L5: 0.76 | M5: 1 | N5: 1 | O5: 0.76 | P5: 0.84 | Q5: 1 | R5: 0.25 | S5: 0.25 | T5: 0.92 | U5: 1
A6: 2024-10-11 | B6: МОБУ СОШ с.Засечное | C6: 0.95 | D6: 0.63 | E6: 0.43 | F6: 0.69 | G6: 0.94 | H6: 0.19 | I6: 0.56 | J6: 0.56 | K6: 0.94 | L6: 0.56 | M6: 0.19 | N6: 0.99 | O6: 0.56 | P6: 0.44 | Q6: 0.75 | R6: 0.56 | S6: 0.19 | T6: 0.44 | U6: 0.44
A7: 2024-10-11 | B7: МОБУ СОШ с.Засечное | C7: 0.72 | D7: 0.71 | E7: 0.56 | F7: 0.81 | G7: 1 | H7: 0 | I7: 0.33 | J7: 1 | K7: 1 | L7: 1 | M7: 0.43 | N7: 1 | O7: 0.65 | P7: 0.87 | Q7: 0.05 | R7: 0.65 | S7: 0 | T7: 0.43 | U7: 0.8
A8: 2024-10-11 | B8: МОБУ СОШ с.Засечное | C8: 0.38 | D8: 0.64 | E8: 0.72 | F8: 0.69 | G8: 0.85 | H8: 0.35 | I8: 0.25 | J8: 0.64 | K8: 0.6 | L8: 0.07 | M8: 0.57 | N8: 0.53 | O8: 0.43 | P8: 0.05 | Q8: 0.82 | R8: 0.14 | S8: 0.14 | T8: 0.05 | U8: 0
A9: 2024-10-11 | B9: МОБУ СОШ с.Засечное | C9: 0.62 | D9: 0.29 | E9: 0.52 | F9: 0.63 | G9: 0.68 | H9: 0.27 | I9: 0.44 | J9: 0.41 | K9: 0.58 | L9: 0.75 | M9: 0.27 | N9: 0.55 | O9: 0.41 | P9: 0.5 | Q9: 0.2 | R9: 0.48 | S9: 0 | T9: 0.27 | U9: 0.09
A10: 2024-10-11 | B10: МОБУ СОШ с.Засечное | C10: 0.92 | D10: 0.6 | E10: 0.82 | F10: 0.44 | G10: 1 | H10: 0.44 | I10: 0.98 | J10: 0.98 | K10: 0.65 | L10: 0.65 | M10: 0.51 | N10: 0.98 | O10: 0.65 | P10: 0.44 | Q10: 0.65 | R10: 0 | S10: 0 | T10: 0.44 | U10: 0.44
A11: 2024-10-11 | B11: МОБУ СОШ с.Засечное | C11: 0.78 | D11: 0.37 | E11: 0.18 | F11: 0.63 | G11: 0.94 | H11: 0.23 | I11: 0.7 | J11: 0 | K11: 0.7 | L11: 0.94 | M11: 0 | N11: 0.7 | O11: 0.47 | P11: 0.31 | Q11: 0.51 | R11: 0 | S11: 0 | T11: 0.62 | U11: 0.62
A12: 2024-10-11 | B12: МОБУ СОШ с.Засечное | C12: 1 | D12: 0.64 | E12: 0.47 | F12: 0.69 | G12: 1 | H12: 0.68 | I12: 1 | J12: 1 | K12: 1 | L12: 0.95 | M12: 0.54 | N12: 1 | O12: 0.81 | P12: 0.99 | Q12: 0.47 | R12: 1 | S12: 0 | T12: 0.45 | U12: 1
A13: 2024-10-11 | B13: МОБУ СОШ с.Засечное | C13: 0.62 | D13: 0.39 | E13: 0.42 | F13: 0.56 | G13: 0.71 | H13: 0.33 | I13: 0.6 | J13: 0.36 | K13: 0.21 | L13: 0.06 | M13: 0.04 | N13: 0.33 | O13: 0.36 | P13: 0.48 | Q13: 0.21 | R13: 0.36 | S13: 0 | T13: 0.04 | U13: 0.2
A14: 2024-10-11 | B14: МОБУ СОШ с.Засечное | C14: 1 | D14: 1 | E14: 1 | F14: 0.63 | G14: 1 | H14: 0.92 | I14: 1 | J14: 1 | K14: 1 | L14: 0.33 | M14: 1 | N14: 1 | O14: 1 | P14: 1 | Q14: 0.67 | R14: 1 | S14: 1 | T14: 0.78 | U14: 0.78
A15: 2024-10-11 | B15: МОБУ СОШ с.Засечное | C15: 0.8 | D15: 0.51 | E15: 0.57 | F15: 0.81 | G15: 0.91 | H15: 0.04 | I15: 0.23 | J15: 0.45 | K15: 0.91 | L15: 0.91 | M15: 0.05 | N15: 0.91 | O15: 0.45 | P15: 0.3 | Q15: 0.08 | R15: 0.45 | S15: 0 | T15: 0.3 | U15: 0.25
A16: 2024-10-11 | B16: МОБУ СОШ с.Засечное | C16: 0.88 | D16: 0.45 | E16: 0.46 | F16: 0.69 | G16: 0.93 | H16: 0 | I16: 0.7 | J16: 0.46 | K16: 0.93 | L16: 0.93 | M16: 0 | N16: 0.7 | O16: 0.46 | P16: 0.31 | Q16: 0 | R16: 0.93 | S16: 0 | T16: 0 | U16: 0.31
A17: 2024-10-11 | B17: МОБУ СОШ с.Засечное | C17: 1 | D17: 0.5 | E17: 0.7 | F17: 0.88 | G17: 1 | H17: 0.63 | I17: 0.53 | J17: 0.79 | K17: 0.95 | L17: 0.85 | M17: 0.78 | N17: 0.48 | O17: 0.63 | P17: 0.35 | Q17: 0.42 | R17: 0.11 | S17: 0.21 | T17: 0.71 | U17: 1
A18: 2024-10-11 | B18: МОБУ СОШ с.Засечное | C18: 1 | D18: 0.89 | E18: 0.19 | F18: 0.75 | G18: 0.92 | H18: 0.34 | I18: 1 | J18: 0.92 | K18: 0.8 | L18: 1 | M18: 0.31 | N18: 0.52 | O18: 0.69 | P18: 0.92 | Q18: 0.34 | R18: 0.92 | S18: 1 | T18: 0.84 | U18: 0.84
A51: Среднее | C51: =AVERAGE(C4:C50) -> 0.788 | D51: =AVERAGE(D4:D50) -> 0.5586666667 | E51: =AVERAGE(E4:E50) -> 0.54 | F51: 0.6806666667 | G51: 0.866 | H51: =AVERAGE(H4:H50) -> 0.368 | I51: =AVERAGE(I4:I50) -> 0.6286666667 | J51: 0.612 | K51: 0.74 | L51: 0.6733333333 | M51: 0.3966666667 | N51: 0.728 | O51: 0.578 | P51: 0.5373333333 | Q51: 0.4493333333 | R51: =AVERAGE(R4:R50) -> 0.4793333333 | S51: 0.224 | T51: 0.4473333333 | U51: 0.5253333333
A52: СКО/станд. откл. группы А: | C52: =_xlfn.STDEV.S(C4:C50) -> 0.2142828571 | D52: =_xlfn.STDEV.S(D4:D50) -> 0.2012413855 | E52: 0.2170911593 | F52: 0.1127238514 | G52: 0.2327414261 | H52: 0.2766689616 | I52: 0.3158405264 | J52: 0.3283987124 | K52: 0.2542495962 | L52: 0.3284306116 | M52: 0.3366360193 | N52: 0.2731875337 | O52: 0.1865552389 | P52: 0.3047825142 | Q52: 0.3010331417 | R52: 0.3558985944 | S52: 0.3519902596 | T52: 0.2885051786 | U52: 0.3590437034
A55: ГРУППА Б
A56: 2024-10-11 | B56: МОБУ СОШ с.Засечное | C56: 0.55 | D56: 0.66 | E56: 0.53 | F56: 0.63 | G56: 0.81 | H56: 0.2 | I56: 0.2 | J56: 0.27 | K56: 0.44 | L56: 0.34 | M56: 0.49 | N56: 0.24 | O56: 0.4 | P56: 0.31 | Q56: 0.57 | R56: 0.13 | S56: 0.13 | T56: 0.67 | U56: 0.04
A57: 2024-10-11 | B57: МОБУ СОШ с.Засечное | C57: 0.46 | D57: 0.39 | E57: 0.24 | F57: 0.56 | G57: 0.55 | H57: 0.3 | I57: 0.11 | J57: 0.33 | K57: 0.44 | L57: 0.33 | M57: 0.11 | N57: 0.44 | O57: 0.33 | P57: 0.3 | Q57: 0.11 | R57: 0.11 | S57: 0.11 | T57: 0.41 | U57: 0.59
A58: 2024-10-11 | B58: МОБУ СОШ с.Засечное | C58: 0.75 | D58: 0.58 | E58: 0.5 | F58: 0.56 | G58: 1 | H58: 0.05 | I58: 1 | J58: 0.81 | K58: 0.81 | L58: 1 | M58: 0.32 | N58: 0.05 | O58: 0.58 | P58: 0.13 | Q58: 0.58 | R58: 1 | S58: 0 | T58: 0.77 | U58: 0.38
A59: 2024-10-11 | B59: МОБУ СОШ с.Засечное | C59: 0.64 | D59: 0.36 | E59: 0.64 | F59: 0.56 | G59: 0 | H59: 0.69 | I59: 0.49 | J59: 0.73 | K59: 0.73 | L59: 0.97 | M59: 0.27 | N59: 0.69 | O59: 0.49 | P59: 0.05 | Q59: 0.24 | R59: 0.49 | S59: 0.16 | T59: 0.11 | U59: 0.32
A60: 2024-10-11 | B60: МОБУ СОШ с.Засечное | C60: 1 | D60: 0.88 | E60: 1 | F60: 0.75 | G60: 1 | H60: 1 | I60: 0.75 | J60: 1 | K60: 1 | L60: 0.33 | M60: 0.56 | N60: 1 | O60: 1 | P60: 0.33 | Q60: 1 | R60: 0.17 | S60: 0.33 | T60: 0.67 | U60: 1
A61: 2024-10-11 | B61: МОБУ СОШ с.Засечное | C61: 0.46 | D61: 0.44 | E61: 0.34 | F61: 0.38 | G61: 0.67 | H61: 0.54 | I61: 0.54 | J61: 0.67 | K61: 0.44 | L61: 0.13 | M61: 0.31 | N61: 0.67 | O61: 0.4 | P61: 0.18 | Q61: 0.54 | R61: 0.13 | S61: 0.13 | T61: 0.13 | U61: 0.13
A62: 2024-10-11 | B62: МОБУ СОШ с.Засечное | C62: 0.53 | D62: 0.39 | E62: 0.57 | F62: 0.56 | G62: 0.97 | H62: 0.58 | I62: 0.29 | J62: 0.78 | K62: 0.97 | L62: 0.97 | M62: 0.78 | N62: 0.97 | O62: 0.58 | P62: 0.19 | Q62: 0.97 | R62: 0.19 | S62: 0.78 | T62: 0.39 | U62: 0.39
A63: 2024-10-11 | B63: МОБУ СОШ с.Засечное | C63: 0.71 | D63: 0.65 | E63: 0.7 | F63: 0.69 | G63: 1 | H63: 0.31 | I63: 0.42 | J63: 0.57 | K63: 0.57 | L63: 0.73 | M63: 0.14 | N63: 0.62 | O63: 0.62 | P63: 0.55 | Q63: 0.88 | R63: 0.1 | S63: 0.83 | T63: 1 | U63: 0.83
A64: 2024-10-11 | B64: МОБУ СОШ с.Засечное | C64: 0.52 | D64: 0.4 | E64: 0.57 | F64: 0.69 | G64: 0.83 | H64: 0.24 | I64: 0.41 | J64: 0.83 | K64: 0.83 | L64: 0.41 | M64: 0.05 | N64: 0.83 | O64: 0.41 | P64: 0 | Q64: 0.62 | R64: 0 | S64: 0 | T64: 0 | U64: 0
A65: 2024-10-11 | B65: МОБУ СОШ с.Засечное | C65: 0.51 | D65: 0.28 | E65: 0.63 | F65: 0.5 | G65: 0.78 | H65: 0.03 | I65: 0.16 | J65: 0.75 | K65: 0.78 | L65: 0.39 | M65: 0 | N65: 0.62 | O65: 0.39 | P65: 0 | Q65: 0.55 | R65: 0.32 | S65: 0 | T65: 0.48 | U65: 0.04
A66: 2024-10-11 | B66: МОБУ СОШ с.Засечное | C66: 0.65 | D66: 0.82 | E66: 0.63 | F66: 0.5 | G66: 1 | H66: 0.64 | I66: 0.99 | J66: 0.76 | K66: 0.7 | L66: 0.7 | M66: 0.47 | N66: 1 | O66: 0.7 | P66: 0.23 | Q66: 0.93 | R66: 0.12 | S66: 0.23 | T66: 0.85 | U66: 0.85
A67: 2024-10-11 | B67: МОБУ СОШ с.Засечное | C67: 0.88 | D67: 0.71 | E67: 0.37 | F67: 0.69 | G67: 1 | H67: 0.56 | I67: 1 | J67: 0.61 | K67: 0.81 | L67: 0.51 | M67: 0.67 | N67: 0.15 | O67: 0.61 | P67: 0.54 | Q67: 0.46 | R67: 0.61 | S67: 0 | T67: 0.67 | U67: 0.54
A68: 2024-10-11 | B68: МОБУ СОШ с.Засечное | C68: 0.76 | D68: 0.76 | E68: 0.71 | F68: 0.56 | G68: 1 | H68: 0.32 | I68: 0.63 | J68: 0.63 | K68: 0.68 | L68: 0 | M68: 0.35 | N68: 0.58 | O68: 0.63 | P68: 1 | Q68: 0.95 | R68: 1 | S68: 0.21 | T68: 1 | U68: 0
A69: 2024-10-11 | B69: МОБУ СОШ с.Засечное | C69: 0.67 | D69: 0.48 | E69: 0.52 | F69: 0.63 | G69: 0.77 | H69: 0.39 | I69: 0.73 | J69: 0.46 | K69: 0.5 | L69: 0.39 | M69: 0.46 | N69: 0.27 | O69: 0.46 | P69: 0.21 | Q69: 0.5 | R69: 0.15 | S69: 0.15 | T69: 0.62 | U69: 0.26
A99: Среднее | C99: =AVERAGE(C56:C98) -> 0.6492857143 | D99: 0.5571428571 | E99: 0.5678571429 | F99: 0.59 | G99: 0.8128571429 | H99: 0.4178571429 | I99: 0.5514285714 | J99: 0.6571428571 | K99: 0.6928571429 | L99: 0.5142857143 | M99: 0.3557142857 | N99: 0.5807142857 | O99: 0.5428571429 | P99: 0.2871428571 | Q99: 0.6357142857 | R99: 0.3228571429 | S99: 0.2185714286 | T99: 0.555 | U99: 0.3835714286
A100: СКО/станд. откл. группы Б: | C100: =_xlfn.STDEV.S(C56:C98) -> 0.1604543686 | D100: =_xlfn.STDEV.S(D56:D98) -> 0.1908454297 | E100: 0.1848566418 | F100: 0.09750739617 | G100: 0.2757208335 | H100: 0.2666654075 | I100: 0.3105047291 | J100: 0.1994001995 | K100: 0.1902803022 | L100: 0.3143421528 | M100: 0.2320714176 | N100: 0.3147517773 | O100: 0.1734903487 | P100: 0.2659794258 | Q100: 0.2767869018 | R100: 0.3296951639 | S100: 0.2672324584 | T100: 0.3178957255 | U100: 0.3371739369
A103: Количество учащихся группы А: | C103: =COUNT(C4:C50) -> 15
A104: Количество учащихся группы B: | C104: =COUNT(C56:C98) -> 14
A105: Значение t-критерия Стьюдента | C105: =ABS(C51-C99)/SQRT((C52^2)/C103+(C100^2)/C104) -> 1.981609481 | D105: =ABS(D51-D99)/SQRT((D52^2)/C103+(D100^2)/C104) -> 0.02092828498 | E105: =ABS(E51-E99)/SQRT((E52^2)/C103+(E100^2)/C104) -> 0.3728310545 | F105: =ABS(F51-F99)/SQRT((F52^2)/C103+(F100^2)/C104) -> 2.320798169 | G105: =ABS(G51-G99)/SQRT((G52^2)/C103+(G100^2)/C104) -> 0.5588915628 | H105: =ABS(H51-H99)/SQRT((H52^2)/C103+(H100^2)/C104) -> 0.4940865848 | I105: =ABS(I51-I99)/SQRT((I52^2)/C103+(I100^2)/C104) -> 0.6638504499 | J105: =ABS(J51-J99)/SQRT((J52^2)/C103+(J100^2)/C104) -> 0.450758663 | K105: =ABS(K51-K99)/SQRT((K52^2)/C103+(K100^2)/C104) -> 0.5677098575 | L105: =ABS(L51-L99)/SQRT((L52^2)/C103+(L100^2)/C104) -> 1.33239927 | M105: =ABS(M51-M99)/SQRT((M52^2)/C103+(M100^2)/C104) -> 0.3835229133 | N105: =ABS(N51-N99)/SQRT((N52^2)/C103+(N100^2)/C104) -> 1.341637951 | O105: =ABS(O51-O99)/SQRT((O52^2)/C103+(O100^2)/C104) -> 0.525627242 | P105: =ABS(P51-P99)/SQRT((P52^2)/C103+(P100^2)/C104) -> 2.359233314 | Q105: =ABS(Q51-Q99)/SQRT((Q52^2)/C103+(Q100^2)/C104) -> 1.736983781 | R105: =ABS(R51-R99)/SQRT((R52^2)/C103+(R100^2)/C104) -> 1.229072132 | S105: =ABS(S51-S99)/SQRT((S52^2)/C103+(S100^2)/C104) -> 0.04696454448 | T105: =ABS(T51-T99)/SQRT((T52^2)/C103+(T100^2)/C104) -> 0.9528612219 | U105: =ABS(U51-U99)/SQRT((U52^2)/C103+(U100^2)/C104) -> 1.096507146
A107: Граничное значение t-критерия Стьюдента для уровня значимости 5%: | F107: =TINV(5%,C103+C104-2) -> 2.051830516
A108: Граничное значение t-критерия Стьюдента для уровня значимости 10%: | F108: =TINV(10%,C103+C104-2) -> 1.703288446
A109: Граничное значение t-критерия Стьюдента для уровня значимости 20%: | F109: =TINV(20%,C104+C105-2) -> 1.350171289
C112: =AVERAGE(C4:C50,C56:C98) -> 0.7210344828 | D112: =AVERAGE(D4:D50,D56:D98) -> 0.5579310345 | E112: 0.5534482759 | F112: 0.6368965517 | G112: 0.8403448276 | H112: 0.3920689655 | I112: 0.5913793103 | J112: 0.6337931034 | K112: 0.7172413793 | L112: 0.5965517241 | M112: 0.3768965517 | N112: 0.6568965517 | O112: 0.5610344828 | P112: 0.4165517241 | Q112: 0.5393103448 | R112: 0.4037931034 | S112: 0.2213793103 | T112: 0.4993103448 | U112: 0.4568965517

Sheet Диаграмма
